bitfinex-derivatives/quotes_ETHF0:USTF0_20240904
["timestamp","ask_amount","ask_price","bid_price","bid_amount"]
[1725460002344,1.04161,2400.3,2399.8,3.2078]
[1725460002537,0.41669,2400.0,2399.8,3.2078]
[1725460002740,3.2078,2400.2,2399.8,3.2078]
[1725460002937,0.41669,2400.0,2399.8,3.2078]
[1725460003146,0.41668,2400.1,2399.8,3.2078]
[1725460003348,0.6018,2400.4,2399.9,0.20335825]
[1725460003349,0.41663,2400.4,2399.9,0.20335825]
[1725460003647,0.41664,2400.3,2400.0,0.41667]
[1725460003839,0.615,2400.5,2400.0,0.62686312]
[1725460004045,0.615,2400.5,2399.8,8.0078]
[1725460004356,0.615,2400.5,2400.3,0.41662]
[1725460004560,0.615,2400.5,2400.4,0.41661]
[1725460004844,1.0316,2400.5,2399.9,1.2329]
[1725460005051,0.615,2400.5,2399.9,1.2329]
[1725460005243,1.0316,2400.5,2399.9,1.2329]
[1725460005558,1.0316,2400.5,2400.2,0.41665]
[1725460005559,0.615,2400.5,2400.2,0.41665]
[1725460005750,0.615,2400.5,2400.2,0.41664]
[1725460006243,1.0316,2400.5,2400.1,0.41665]
[1725460006541,1.03161,2400.5,2400.1,0.41666]
[1725460006741,0.615,2400.5,2399.8,3.41757636]
[1725460006942,0.615,2400.5,2399.8,3.2078]
[1725460006943,3.2078,2400.4,2399.8,3.2078]
[1725460007150,0.615,2400.5,2399.8,3.41548384]
[1725460007456,0.615,2400.5,2399.9,0.4167]
[1725460007457,0.41664,2400.3,2399.9,0.4167]
[1725460007849,0.41667,2400.1,2399.7,0.41673]
[1725460008054,0.41666,2400.2,2399.6,1.2192]
[1725460008360,0.5829,2400.3,2399.8,0.41671]
[1725460008558,0.5829,2400.3,2399.6,1.2192]
[1725460008856,0.5829,2400.3,2399.7,0.41672]
[1725460008857,1.04163,2400.2,2399.7,0.41672]
[1725460009046,0.41669,2400.0,2399.7,0.41673]
[1725460009248,0.41671,2399.9,2399.6,0.41675]
[1725460009449,0.41671,2399.9,2399.5,0.00624493]
[1725460009450,4.24943,2400.2,2399.5,0.00624493]
[1725460009654,3.2078,2400.2,2399.5,0.00624493]
[1725460009956,0.41668,2400.0,2399.7,0.41672]
[1725460010159,3.8228,2400.5,2399.6,8.6212]
[1725460010454,0.41662,2400.4,2400.1,0.41666]
[1725460010654,0.615,2400.5,2400.2,0.41664]
[1725460010964,0.41662,2400.4,2400.1,0.41666]
[1725460011151,0.41662,2400.4,2399.8,1.0418]
[1725460011152,0.615,2400.5,2399.9,1.04176]
[1725460011358,1.0316,2400.5,2399.9,3.8111]
[1725460011663,0.615,2400.5,2400.2,0.41664]
[1725460011957,0.41661,2400.4,2400.2,0.41664]
[1725460012263,0.41661,2400.4,2400.1,0.41665]
[1725460012461,0.41664,2400.3,2400.0,0.41667]
[1725460012755,3.8228,2400.5,2399.9,0.81582386]
[1725460012956,0.41664,2400.3,2399.9,0.21252386]
[1725460013159,3.8228,2400.5,2399.6,4.4245]
[1725460013463,0.41671,2399.9,2399.7,0.41673]
[1725460013664,4.24946,2400.2,2399.5,0.00624493]
[1725460013960,3.2078,2400.2,2399.5,0.00624493]
[1725460014159,0.41672,2399.8,2399.6,0.41675]
[1725460014355,0.4167,2400.0,2399.8,0.41672]
[1725460014752,4.5839,2400.0,2399.8,0.41672]
[1725460014954,4.58389,2400.0,2399.8,0.4167]
[1725460015454,4.1672,2400.0,2399.6,0.41674]
[1725460015671,0.41672,2399.8,2399.6,0.41675]
[1725460016159,4.1672,2399.7,2399.5,0.00624493]
[1725460016363,0.41674,2399.7,2399.5,0.42300493]
[1725460016752,0.41672,2399.8,2399.6,0.41674]
[1725460017668,0.41675,2399.6,2399.5,0.00624493]
[1725460018164,8.83364,2399.6,2399.5,0.00624493]
[1725460018620,8.83364,2399.6,2398.8,3.2078]
[1725460018621,1.04193,2399.5,2398.8,3.2078]
[1725460018766,0.41688,2398.9,2398.6,0.41692]
[1725460018964,3.2078,2399.3,2398.3,4.3892]
[1725460019165,3.2078,2399.3,2398.6,4.25012]
[1725460019358,3.2078,2399.3,2398.6,4.46036444]
[1725460019564,0.00624493,2399.2,2399.1,0.41684]
[1725460019756,0.00624493,2399.2,2398.7,0.00624493]
[1725460019757,0.00624493,2399.2,2399.0,0.41684]
[1725460019957,0.62854493,2399.2,2399.1,0.41684]
[1725460020265,0.62854493,2399.2,2398.7,0.00624493]
[1725460020266,9.59654493,2399.2,2398.7,0.00624493]
[1725460020460,0.41689,2398.8,2398.7,0.00624493]
[1725460020678,1.45912,2398.8,2398.7,0.00624493]
[1725460021005,4.1688,2398.8,2398.7,0.00624493]
[1725460021176,4.58569,2398.8,2398.7,0.00624493]
[1725460021478,4.1688,2398.8,2398.7,0.42315493]
[1725460021681,4.58569,2398.8,2398.7,0.00624493]
[1725460021879,10.58569,2398.8,2398.7,0.00624493]
[1725460022071,11.62792,2398.8,2398.7,0.00624493]
[1725460022269,11.62792,2398.8,2397.5,0.209]
[1725460022270,6.0,2398.8,2397.5,0.209]
[1725460022472,3.2078,2397.7,2396.9,0.6185]
[1725460022684,3.2078,2397.7,2396.8,3.2078]
[1725460022880,5.21712,2397.5,2396.6,0.41727]
[1725460023179,3.2078,2397.4,2396.5,3.2078]
[1725460023487,3.2078,2397.4,2396.8,0.42347493]
[1725460023493,0.00624493,2397.3,2396.8,0.42347493]
[1725460023787,0.00624493,2397.3,2396.8,0.00624493]
[1725460023978,0.41717,2397.2,2396.8,0.00624493]
[1725460024480,0.00624493,2397.3,2396.8,0.00624493]
[1725460024682,3.62499,2397.1,2396.8,0.00624493]
[1725460024875,0.41722,2396.9,2396.8,0.00624493]
[1725460025273,10.58922,2396.9,2396.8,0.00624493]
[1725460025480,11.21812,2396.9,2396.8,0.00624493]
[1725460026179,11.21812,2396.9,2395.7,1.2179]
[1725460026180,10.8009,2396.9,2395.7,1.2179]
[1725460026382,3.62506,2396.7,2396.0,0.41737]
[1725460026569,3.62506,2396.7,2395.7,1.2179]
[1725460026570,0.41729,2396.6,2395.9,0.41738]
[1725460026779,3.2078,2396.5,2395.8,0.20742166]
[1725460026971,3.2078,2396.5,2395.9,0.41738]
[1725460027280,8.42505,2396.8,2396.1,0.41734]
[1725460027581,8.42505,2396.8,2396.2,0.41734]
[1725460027582,3.2078,2396.5,2396.2,0.41734]
[1725460027782,5.21724,2396.8,2396.2,0.41734]
[1725460027783,8.42505,2396.8,2396.2,0.41734]
[1725460027979,0.41726,2396.7,2396.1,0.62560678]
[1725460028180,0.41728,2396.6,2396.0,0.42362821]
[1725460028376,3.2078,2396.5,2396.0,0.42362821]
[1725460028580,3.2078,2396.5,2396.1,0.41735]
[1725460028878,0.6289,2396.9,2396.6,0.41727]
[1725460029081,3.2078,2396.8,2396.0,0.00625821]
[1725460029281,3.2078,2396.8,2396.6,0.41726]
[1725460029475,3.2078,2397.1,2396.1,3.2078]
[1725460029678,3.2078,2397.1,2396.5,0.41728]
[1725460029679,0.4172,2397.0,2396.5,0.41728]
[1725460029873,3.2078,2397.1,2396.1,3.2078]
[1725460030087,3.62499,2397.1,2396.6,0.41727]
[1725460030327,3.2078,2397.1,2396.7,0.41726]
[1725460030481,3.2078,2397.1,2396.7,0.41725]
[1725460030671,3.2078,2397.1,2396.1,3.35905224]
[1725460030873,3.625,2397.1,2396.1,3.35905224]
[1725460031079,3.62499,2397.1,2396.6,0.41727]
[1725460031277,0.41721,2397.0,2396.5,0.41728]
[1725460031483,3.2078,2397.1,2396.6,0.41727]
[1725460031484,3.625,2397.1,2396.6,0.41727]
[1725460031679,5.41074493,2397.3,2396.1,3.35905224]
[1725460031680,3.2078,2396.7,2396.1,3.35905224]
[1725460031873,0.61074493,2397.3,2396.1,3.35905224]
[1725460031874,3.2078,2397.1,2396.1,3.35905224]
[1725460032080,3.62499,2397.1,2396.7,0.41725]
[1725460032277,3.62499,2397.1,2396.1,3.35905224]
[1725460032278,0.41724,2396.8,2396.1,0.15125224]
[1725460032473,4.8,2397.0,2396.0,0.00625821]
[1725460032986,3.2078,2397.1,2396.7,0.41725]
[1725460032987,3.62499,2397.1,2396.7,0.41725]
[1725460033284,3.2078,2397.1,2396.7,0.41725]
[1725460033480,3.2078,2397.1,2396.8,0.41723]
[1725460033993,3.2078,2397.1,2396.9,0.41721]
[1725460034486,3.2078,2397.1,2396.8,0.41723]
[1725460034698,3.2078,2397.1,2396.5,0.5725]
[1725460034875,3.2078,2397.1,2396.1,1.04341]
[1725460034876,4.8,2397.0,2396.1,1.04341]
[1725460035074,4.8,2397.0,2396.4,0.4173]
[1725460035284,4.8,2397.0,2396.6,0.41726]
[1725460035285,3.2078,2396.8,2396.6,0.41726]
[1725460035480,4.8,2397.0,2396.1,1.04341]
[1725460035783,0.41725,2396.8,2396.4,0.4173]
[1725460036093,0.41726,2396.8,2396.0,0.57875821]
[1725460036285,0.41724,2396.8,2396.5,0.41728]
[1725460036486,3.2078,2396.9,2396.0,0.57875821]
[1725460036487,3.62503,2396.9,2396.1,1.04341]
[1725460036682,0.41725,2396.8,2396.5,0.41729]
[1725460036889,3.62503,2396.9,2396.6,0.41727]
[1725460037086,4.172,2396.8,2396.0,0.57875821]
[1725460037391,0.41725,2396.8,2396.5,0.41729]
[1725460037684,0.41725,2396.8,2396.1,0.41736]
[1725460037685,3.2078,2396.6,2396.1,0.41736]
[1725460037887,0.41731,2396.4,2396.1,0.41736]
[1725460038185,3.2078,2396.6,2396.2,0.41734]
[1725460038186,0.41729,2396.5,2396.2,0.41734]
[1725460038694,3.62509,2396.6,2396.0,0.57875821]
[1725460038989,0.41729,2396.5,2396.0,0.57875821]
[1725460039186,5.9486,2396.7,2396.0,1.62219821]
[1725460039384,5.9486,2396.7,2396.4,0.4173]
[1725460039592,5.3641,2396.7,2396.0,1.62219821]
[1725460039798,3.2078,2396.6,2396.1,0.41735]
[1725460040091,3.2078,2396.6,2396.0,0.00625821]
[1725460040290,3.2078,2396.6,2396.2,0.41734]
[1725460040485,3.2078,2396.6,2396.3,0.41732]
[1725460040680,3.62509,2396.6,2396.3,0.41732]
[1725460040886,0.41732,2396.4,2396.2,0.41734]
[1725460041081,5.3641,2396.7,2396.0,1.04968821]
[1725460041385,0.41732,2396.4,2396.0,0.00625821]
[1725460041585,0.41732,2396.4,2396.2,0.41734]
[1725460041792,3.2078,2396.6,2396.0,0.42362821]
[1725460041793,1.04326,2396.5,2396.0,0.42362821]
[1725460041989,0.41732,2396.4,2396.2,0.41734]
[1725460042190,5.3641,2396.7,2396.4,0.4173]
[1725460042398,5.3641,2396.7,2396.5,0.41729]
[1725460042399,5.78136,2396.7,2396.5,0.41729]
[1725460042605,5.3641,2396.7,2396.1,1.04341]
[1725460042789,5.3641,2396.7,2396.4,0.4173]
[1725460043090,5.3641,2396.7,2396.0,0.00625821]
[1725460043091,3.2078,2396.6,2396.0,0.00625821]
[1725460043282,0.41731,2396.4,2396.2,0.41734]
[1725460043792,0.41734,2396.3,2396.0,0.00625821]
[1725460043989,1.04324,2396.5,2396.0,0.00625821]
[1725460043990,1.46077,2396.1,2396.0,0.00625821]
[1725460044388,12.67778,2396.1,2396.0,0.00625821]
[1725460044609,12.67778,2396.1,2394.9,1.04392]
[1725460044610,10.1736,2396.1,2395.0,0.41754]
[1725460044890,10.1736,2396.1,2394.7,4.39900787]
[1725460044891,4.8,2395.4,2394.7,4.39900787]
[1725460045118,4.8,2394.9,2394.7,3.35501787]
[1725460045392,4.8,2394.9,2393.6,2.29799]
[1725460045393,0.41772,2394.1,2393.7,0.41778]
[1725460045578,0.41772,2394.1,2392.6,5.2176]
[1725460045579,3.2078,2394.3,2393.0,3.2078]
[1725460045784,0.00625821,2394.1,2394.0,0.41773]
[1725460045979,1.04388,2395.1,2394.2,1.04421]
[1725460045980,4.8,2395.0,2394.2,1.04421]
[1725460046188,4.8,2395.0,2394.2,0.20451699]
[1725460046189,3.2078,2394.9,2394.2,0.20451699]
[1725460046386,3.2078,2394.9,2394.1,1.1099]
[1725460046585,3.2078,2394.9,2393.8,1.04439]
[1725460046586,8.0078,2394.7,2394.4,0.41765]
[1725460046785,22.3,2395.4,2394.0,3.2078]
[1725460046786,8.0078,2395.2,2394.0,3.2078]
[1725460046989,8.0078,2395.2,2394.7,0.41759]
[1725460047190,3.2078,2394.9,2394.7,0.00625821]
[1725460047394,0.41759,2394.8,2394.7,0.00625821]
[1725460047584,3.2078,2394.9,2394.7,0.00625821]
[1725460047788,4.176,2394.8,2394.7,0.00625821]
[1725460048091,3.2078,2394.9,2394.7,0.00625821]
[1725460048988,3.2078,2394.9,2394.7,0.42384821]
[1725460049189,0.41755,2395.1,2394.7,0.00625821]
[1725460049385,3.21405821,2395.2,2394.8,0.41758]
[1725460049589,3.21405821,2395.2,2394.7,0.00625821]
[1725460049787,4.1752,2395.1,2394.7,0.00625821]
[1725460049992,3.2078,2394.9,2394.7,0.00625821]
[1725460050199,4.59359,2394.8,2394.7,0.00625821]
[1725460050590,11.63757,2394.8,2394.7,0.00625821]
[1725460050898,4.176,2394.8,2394.7,0.00625821]
[1725460051390,5.85008821,2395.2,2395.1,0.41753]
[1725460051391,0.00625821,2395.2,2395.1,0.41753]
[1725460051592,0.00625821,2395.2,2395.0,0.41755]
[1725460051991,4.1752,2395.1,2395.0,0.41755]
[1725460052288,4.1752,2395.1,2394.7,0.00625821]
[1725460052289,0.41759,2394.8,2394.7,0.00625821]
[1725460052493,3.62539,2394.8,2394.7,0.00625821]
[1725460052801,3.2078,2394.8,2394.7,0.00625821]
[1725460052995,3.2078,2394.8,2394.7,0.42385821]
[1725460053098,3.2078,2394.8,2394.7,0.00625821]
[1725460053288,4.176,2394.8,2394.7,0.00625821]
[1725460053493,4.59359,2394.8,2394.7,0.00625821]
[1725460053700,10.59359,2394.8,2394.7,0.00625821]
[1725460053905,4.176,2394.8,2394.7,0.00625821]
[1725460054091,3.2078,2394.9,2394.7,0.00625821]
[1725460054291,0.00625821,2395.2,2394.7,0.42385821]
[1725460054292,3.62535,2395.1,2394.7,0.42385821]
[1725460054600,3.62535,2395.1,2394.8,0.41758]
[1725460054601,3.2078,2395.1,2394.8,0.41758]
[1725460054811,3.2078,2395.1,2394.7,0.00625821]
[1725460055599,3.62534,2395.1,2394.7,0.42385821]
[1725460056099,3.2078,2395.1,2394.7,0.00625821]
[1725460056498,0.41759,2394.8,2394.7,0.00625821]
[1725460056702,3.62539,2394.8,2394.7,0.00625821]
[1725460056900,7.3838,2394.8,2394.7,0.00625821]
[1725460057098,3.2078,2395.1,2394.9,0.41757]
[1725460057294,3.2078,2395.1,2394.8,0.41758]
[1725460057295,7.383,2395.1,2394.8,0.41758]
[1725460057605,3.2078,2395.1,2394.9,0.41757]
[1725460057793,4.1752,2395.0,2394.7,0.00625821]
[1725460057993,3.2078,2395.1,2394.8,0.41759]
[1725460058199,3.2078,2395.1,2394.7,0.42385821]
[1725460058399,3.2078,2395.1,2394.8,0.41758]
[1725460058604,3.2078,2395.1,2394.7,0.00625821]
[1725460058802,0.41756,2395.0,2394.7,0.00625821]
[1725460059003,3.2078,2395.1,2394.7,0.00625821]
[1725460059004,0.41757,2394.9,2394.7,0.00625821]
[1725460059206,0.41759,2394.8,2394.7,0.00625821]
[1725460059394,3.62539,2394.8,2394.7,0.00625821]
[1725460059599,7.80139,2394.8,2394.7,0.00625821]
[1725460059804,7.3838,2394.8,2394.7,0.00625821]
[1725460060103,3.2078,2395.1,2394.7,0.00625821]
[1725460060517,3.62535,2395.1,2394.7,0.42384821]
[1725460060801,3.62535,2395.1,2394.7,0.00625821]
[1725460060802,3.2078,2395.1,2394.7,0.00625821]
[1725460061001,0.00625821,2395.2,2394.7,0.00625821]
[1725460061204,0.00625821,2395.2,2394.8,1.04398]
[1725460061406,0.00625821,2395.2,2394.7,0.00625821]
[1725460061407,0.00625821,2395.2,2395.0,0.41754]
[1725460061708,0.00625821,2395.2,2394.7,0.58635821]
[1725460061709,3.2078,2395.1,2394.7,0.58635821]
[1725460062105,0.00625821,2395.2,2395.1,0.41753]
[1725460062597,0.00625821,2395.2,2395.1,1.46137]
[1725460062793,0.00625821,2395.2,2395.1,5.63657]
[1725460063111,3.2078,2396.0,2395.9,0.4174]
[1725460064006,5.84326,2396.5,2396.0,0.41736]
[1725460064007,3.2078,2396.4,2396.0,0.41736]
[1725460064201,0.41736,2396.1,2396.0,0.00625821]
[1725460064707,3.2078,2396.2,2396.0,0.42363821]
[1725460064902,7.3814,2396.2,2396.0,0.00625821]
[1725460065104,4.59096,2396.1,2396.0,0.00625821]
[1725460065306,6.67778,2396.1,2396.0,0.00625821]
[1725460065505,12.67778,2396.1,2396.0,0.00625821]
[1725460066901,11.63437,2396.1,2396.0,0.00625821]
[1725460067799,5.63437,2396.1,2396.0,0.00625821]
[1725460068406,11.63437,2396.1,2396.0,0.00625821]
[1725460070010,10.59096,2396.1,2396.0,0.00625821]
[1725460070311,4.59096,2396.1,2396.0,0.00625821]
[1725460070501,4.1736,2396.1,2396.0,0.42363821]
[1725460070701,3.62516,2396.2,2396.0,0.00625821]
[1725460071011,0.41736,2396.1,2396.0,0.42362821]
[1725460071312,3.2078,2396.2,2396.1,0.41736]
[1725460071610,0.42357821,2396.4,2396.0,0.00625821]
[1725460071611,0.00625821,2396.4,2396.0,0.00625821]
[1725460071811,0.00625821,2396.4,2396.2,0.41734]
[1725460072112,0.00625821,2396.4,2396.3,0.41733]
[1725460073709,0.00625821,2396.4,2396.0,0.00625821]
[1725460073710,0.41733,2396.3,2396.1,0.41735]
[1725460073910,3.2078,2396.3,2396.2,0.41734]
[1725460074114,0.00625821,2396.4,2396.3,0.41733]
[1725460076718,0.41733,2396.3,2396.0,0.00625821]
[1725460077015,3.21405821,2396.4,2396.2,0.41733]
[1725460077404,0.00625821,2396.4,2396.3,0.41733]
[1725460080314,0.00625821,2396.4,2396.3,1.46065]
[1725460080517,0.00625821,2396.4,2396.3,0.41733]
[1725460080813,0.00625821,2396.4,2396.3,1.46065]
[1725460081009,0.00625821,2396.4,2396.3,6.19505]
[1725460081210,3.2078,2396.8,2396.7,0.41726]
[1725460081409,3.2078,2396.8,2396.3,0.5616]
[1725460081612,1.04319,2396.6,2396.0,0.00625821]
[1725460081907,0.41728,2396.6,2396.4,0.4173]
[1725460082310,0.41728,2396.6,2396.1,1.04341]
[1725460082311,3.21405821,2396.7,2396.3,1.04331]
[1725460082508,3.21405821,2396.7,2396.6,0.41727]
[1725460083212,4.117,2397.1,2396.6,4.1728]
[1725460083518,0.41723,2396.9,2396.5,3.7828]
[1725460083723,3.2078,2397.0,2396.5,3.7828]
[1725460083724,3.62501,2397.0,2396.7,0.41725]
[1725460083915,4.117,2397.1,2397.0,0.4172]
[1725460084719,4.117,2397.1,2396.9,0.41721]
[1725460084923,4.117,2397.1,2397.0,0.4172]
[1725460085113,0.00625821,2397.3,2397.2,0.41717]
[1725460085419,0.00625821,2397.3,2396.7,0.5782]
[1725460085620,3.2078,2397.1,2396.7,0.99545]
[1725460085807,0.41723,2396.9,2396.7,0.99545]
[1725460086012,0.41722,2397.0,2396.7,0.99545]
[1725460086317,0.41724,2396.8,2396.7,0.5782]
[1725460086523,0.41721,2397.0,2396.5,3.7828]
[1725460086822,0.41721,2397.0,2396.8,0.41724]
[1725460087015,0.41721,2397.0,2396.8,0.41723]
[1725460087215,3.625,2397.1,2396.6,0.21325401]
[1725460087424,0.41721,2397.0,2396.6,0.21325401]
[1725460087616,0.41721,2397.0,2396.8,0.41723]
[1725460088226,4.117,2397.2,2397.1,0.41719]
[1725460088425,4.53417,2397.2,2397.0,0.4172]
[1725460088726,0.41723,2396.9,2396.7,0.41725]
[1725460088922,0.41724,2396.8,2396.6,0.41726]
[1725460089111,1.04302,2397.0,2396.5,3.7828]
[1725460089425,3.2078,2397.1,2396.7,0.41725]
[1725460089426,0.41723,2396.9,2396.7,0.41725]
[1725460089616,0.41724,2396.8,2396.6,0.41726]
[1725460090016,0.41723,2396.9,2396.5,3.7828]
[1725460090212,0.41724,2396.8,2396.6,0.41727]
[1725460090517,4.2508,2397.1,2396.5,3.7828]
[1725460090725,0.41721,2397.0,2396.5,0.575]
[1725460091019,3.2078,2397.1,2396.7,1.04315]
[1725460091226,4.117,2397.2,2397.1,0.41719]
[1725460091918,0.00625821,2397.3,2397.2,0.41717]
[1725460092617,0.00625821,2397.3,2397.2,0.98237]
[1725460093313,0.00625821,2397.3,2397.2,2.0253]
[1725460093513,0.00625821,2397.3,2397.2,0.98237]
[1725460094126,0.00625821,2397.3,2397.2,2.0253]
[1725460095622,8.42486,2397.9,2397.2,11.77933]
[1725460095826,3.2078,2397.9,2397.4,1.04284]
[1725460096027,3.2078,2397.9,2397.8,0.41706]
[1725460096341,0.5501,2398.4,2397.7,1.0427]
[1725460096515,4.35203952,2398.5,2397.8,0.5314]
[1725460096717,0.41699,2398.3,2398.1,0.41701]
[1725460096913,0.41699,2398.3,2398.0,0.41702]
[1725460097121,0.00625821,2398.4,2398.2,0.41699]
[1725460097316,0.42321821,2398.4,2398.1,0.41701]
[1725460097519,0.00625821,2398.4,2398.0,0.20968253]
[1725460097724,0.00625821,2398.4,2398.2,0.41699]
[1725460098024,0.00625821,2398.4,2398.3,0.41698]
[1725460098324,0.00625821,2398.4,2398.2,0.20907748]
[1725460098522,0.00625821,2398.4,2398.2,0.41699]
[1725460098722,0.00625821,2398.4,2398.2,0.62402281]
[1725460098925,0.00625821,2398.4,2398.3,0.41698]
[1725460099128,0.00625821,2398.4,2398.3,0.62797696]
[1725460099526,4.35203952,2398.5,2398.4,1.45937]
[1725460099721,2.28296415,2398.5,2398.4,12.67138]
[1725460099928,4.88328781,2398.7,2398.6,0.41693]
[1725460100117,4.88328781,2398.7,2398.6,4.66705]
[1725460100318,1.94928671,2398.7,2398.6,15.87817]
[1725460100526,5.36375498,2398.8,2398.7,0.41691]
[1725460101026,5.36375498,2398.8,2398.5,0.585]
[1725460101224,5.36375498,2398.8,2398.7,0.41691]
[1725460101628,5.36375498,2398.8,2398.7,4.58571]
[1725460101927,5.36375498,2398.8,2398.7,10.58571]
[1725460102129,3.21176073,2398.9,2398.5,1.00193]
[1725460102332,3.21176073,2398.9,2398.6,0.41692]
[1725460102333,3.62864073,2398.9,2398.6,0.41692]
[1725460102529,3.21176073,2398.9,2398.5,0.585]
[1725460102932,0.4169,2398.8,2398.5,1.00194]
[1725460103126,0.42084073,2398.9,2398.5,0.41693]
[1725460103333,3.2078,2398.7,2398.3,0.93461008]
[1725460103626,0.00396073,2398.9,2398.4,0.41695]
[1725460103826,0.00396073,2398.9,2398.3,0.78349696]
[1725460103827,3.2078,2398.7,2398.3,0.78349696]
[1725460104033,3.2078,2398.4,2398.1,0.9568]
[1725460104330,0.4169,2398.8,2398.1,0.5398]
[1725460104526,0.42084073,2398.9,2398.2,1.04249]
[1725460104726,0.42084073,2398.9,2398.6,0.41692]
[1725460104929,0.42084073,2398.9,2398.5,0.41694]
[1725460105638,0.00396073,2398.9,2398.6,0.41693]
[1725460105826,0.00396073,2398.9,2398.2,5.84249]
[1725460106032,0.00396073,2398.9,2398.3,0.5783]
[1725460106332,0.00396073,2398.9,2398.8,0.41689]
[1725460106722,0.00396073,2398.9,2398.8,4.58569]
[1725460106923,0.00396073,2398.9,2398.8,10.58569]
[1725460107455,0.00396073,2398.9,2398.8,11.15539]
[1725460107680,0.00396073,2398.9,2398.5,4.8]
[1725460107832,3.21176073,2398.9,2398.4,0.71669171]
[1725460108037,0.00396073,2398.9,2398.8,0.41689]
[1725460108431,0.00396073,2398.9,2398.8,4.58569]
[1725460108832,0.00396073,2398.9,2398.8,4.1688]
[1725460109034,0.00396073,2398.9,2398.8,4.58569]
[1725460109533,0.00396073,2398.9,2398.8,0.41689]
[1725460109838,0.00396073,2398.9,2398.4,0.5697]
[1725460110042,0.00396073,2398.9,2398.6,0.41692]
[1725460110539,0.00396073,2398.9,2398.8,0.41689]
[1725460110735,0.00396073,2398.9,2398.7,0.41689]
[1725460110934,0.00396073,2398.9,2398.8,0.41689]
[1725460111638,0.00396073,2398.9,2398.8,4.58569]
[1725460112134,0.00396073,2398.9,2398.4,8.93684604]
[1725460112135,0.00396073,2398.9,2398.4,9.97923604]
[1725460112332,0.00396073,2398.9,2398.8,0.41689]
[1725460113644,0.00396073,2398.9,2398.8,4.58569]
[1725460114835,0.00396073,2398.9,2398.8,0.41689]
[1725460115231,0.00396073,2398.9,2398.8,5.13979]
[1725460115437,0.00396073,2398.9,2398.8,0.97099]
[1725460115840,0.00396073,2398.9,2398.8,5.13979]
[1725460116146,0.00396073,2398.9,2398.8,6.18202]
[1725460116329,0.00396073,2398.9,2398.8,13.22425]
[1725460116735,0.00396073,2398.9,2398.8,5.13979]
[1725460116939,0.00396073,2398.9,2398.4,0.78130567]
[1725460117338,3.21176073,2398.9,2398.1,3.7619]
[1725460117540,0.41695,2398.5,2398.2,0.62960975]
[1725460117736,3.2078,2398.6,2398.2,0.62961975]
[1725460117941,3.2078,2398.6,2398.0,0.41702]
[1725460118137,3.2078,2398.3,2398.0,0.41702]
[1725460118337,3.2078,2398.3,2397.9,0.57295821]
[1725460118538,0.41697,2398.4,2398.0,0.41702]
[1725460118942,3.62478,2398.3,2398.1,0.21098242]
[1725460119138,3.2078,2398.6,2397.9,0.57295821]
[1725460119345,3.2078,2398.3,2398.0,0.41702]
[1725460119531,0.41703,2398.0,2397.9,0.00625821]
[1725460119732,3.62483,2398.0,2397.9,0.00625821]
[1725460120444,7.79523,2398.0,2397.9,0.00625821]
[1725460120740,1.1091,2398.2,2397.9,0.00625821]
[1725460120931,4.117,2398.4,2398.2,0.417]
[1725460121139,4.117,2398.4,2398.3,0.41698]
[1725460121379,10.0278,2398.7,2398.3,0.41698]
[1725460121380,3.2078,2398.7,2398.3,10.1696]
[1725460121536,3.2078,2398.7,2398.5,0.41693]
[1725460121736,3.2078,2398.7,2398.6,0.41693]
[1725460121943,3.2078,2398.7,2398.2,5.00422632]
[1725460121944,3.2078,2398.7,2398.4,0.41695]
[1725460122636,3.2078,2398.7,2398.5,0.41694]
[1725460123031,0.41693,2398.6,2398.2,0.76773173]
[1725460123339,0.41693,2398.6,2398.2,0.20422632]
[1725460123543,3.2078,2398.7,2398.0,0.5425]
[1725460123842,0.41695,2398.5,2398.0,0.5425]
[1725460124040,3.2078,2398.4,2397.9,0.21577709]
[1725460124247,0.5472,2398.3,2397.9,0.00625821]
[1725460124449,0.417,2398.2,2397.9,0.00625821]
[1725460124637,0.41701,2398.1,2397.9,0.00625821]
[1725460125146,0.417,2398.2,2397.9,0.00625821]
[1725460125341,3.2078,2398.1,2397.9,0.00625821]
[1725460125645,3.62481,2398.1,2397.9,0.00625821]
[1725460125843,0.417,2398.2,2397.9,0.00625821]
[1725460126044,0.5472,2398.3,2397.9,0.21231431]
[1725460126045,3.62481,2398.1,2397.9,0.21231431]
[1725460126242,0.41703,2398.0,2397.9,0.00625821]
[1725460126745,4.1704,2398.0,2397.9,0.00625821]
[1725460126949,3.2078,2398.1,2397.9,0.42330821]
[1725460127241,3.62481,2398.1,2397.9,0.00625821]
[1725460127435,3.2078,2398.1,2397.9,0.00625821]
[1725460127634,0.41703,2398.0,2397.9,0.00625821]
[1725460127844,4.58743,2398.0,2397.9,0.00625821]
[1725460128143,0.41711,2397.6,2397.2,0.41716]
[1725460128442,0.41709,2397.7,2397.4,0.41713]
[1725460128744,3.2078,2397.8,2397.2,0.41717]
[1725460128945,3.2078,2397.8,2397.5,0.41711]
[1725460129141,3.2078,2397.8,2397.1,4.8]
[1725460129142,3.2078,2397.8,2397.4,0.00625821]
[1725460129336,3.2078,2397.8,2397.5,0.41712]
[1725460129745,3.2078,2397.8,2397.5,0.41711]
[1725460130441,3.2078,2397.8,2397.6,0.4171]
[1725460130840,3.2078,2397.8,2397.7,0.41708]
[1725460131651,3.2078,2397.8,2397.7,4.1704]
[1725460131841,3.2078,2397.8,2397.6,0.41709]
[1725460132036,3.2078,2397.8,2397.6,0.4171]
[1725460133348,0.00625821,2397.9,2397.8,0.41706]
[1725460133946,0.00625821,2397.9,2397.7,0.41707]
[1725460134142,0.00625821,2397.9,2397.6,0.5335]
[1725460134345,0.00625821,2397.9,2397.7,0.41707]
[1725460134944,0.00625821,2397.9,2397.8,0.41706]
[1725460136549,0.00625821,2397.9,2397.8,4.58746]